fUST/lending_fUST_20240618
["ID","MTS","AMOUNT","RATE_DAILY","PERIOD"]
[329810678,1718688644772,-500.0,0.00019873,2]
[329810679,1718688644785,-500.0,0.00019874,2]
[329810680,1718688644794,-500.0,0.00019874,2]
[329810681,1718688644803,-151.0,0.00019874,2]
[329810682,1718688644812,-500.0,0.00019874,2]
[329810683,1718688644822,-500.0,0.00019874,2]
[329810684,1718688644831,-500.0,0.00019874,2]
[329810685,1718688644840,-153.0,0.00019902,2]
[329810686,1718688644849,-153.0,0.00019902,2]
[329810687,1718688644859,-153.0,0.00019902,2]
[329810688,1718688644868,-153.0,0.00019902,2]
[329810689,1718688644878,-838.74,0.00020078,2]
[329810690,1718688644888,-5271.96670823,0.00020107,2]
[329810691,1718688644897,-413.88,0.00020139,3]
[329810692,1718688644906,-836.09,0.00020147,2]
[329810693,1718688644915,-460.458741,0.00020147,2]
[329810694,1718688644925,-460.458741,0.00020147,2]
[329810695,1718688644935,-500.0,0.00020147,2]
[329810696,1718688644945,-641.66,0.00020148,2]
[329810697,1718688644955,-502.12377222,0.00020148,2]
[329810698,1718688644965,-500.0,0.00020148,2]
[329810699,1718688644974,-500.0,0.00020148,2]
[329810700,1718688644984,-500.0,0.00020148,2]
[329810701,1718688644993,-265.86370245,0.00020163,2]
[329810702,1718688645003,-190.41727371,0.000202,2]
[329810703,1718688645012,-371.90159856,0.000202,2]
[329810704,1718688645021,-1270.29797708,0.00020299,2]
[329810705,1718688645116,-2895.49464911,0.00020299,2]
[329810706,1718688645128,-151.0,0.00020299,2]
[329810707,1718688645138,-195.65167865,0.00020299,2]
[329810708,1718688645147,-1681.94664973,0.000203,2]
[329810709,1718688645160,-366.70810306,0.000203,2]
[329810710,1718688645235,-144.97471817,0.000203,2]
[329810719,1718688646305,-38746.98548642,0.000203,2]
[329810720,1718688646318,-3031.34550017,0.000203,2]
[329810722,1718688646328,-225.25685943,0.000203,2]
[329810724,1718688646339,-72028.45064444,0.000203,2]
[329810725,1718688646610,-811.4839974,0.000203,2]
[329810733,1718688996136,242.65197293,9.999e-05,2]
[329810735,1718689034255,928.41221697,9.999e-05,2]
[329810741,1718689320308,1582.54864688,0.0001,2]
[329810743,1718689636832,2566.74111167,9.999e-05,2]
[329810744,1718689746136,-2089.76366165,0.0001483,2]
[329810745,1718689746155,-2039.04626728,0.00014831,2]
[329810746,1718689746177,-1782.8783726,0.00014832,2]
[329810747,1718689746198,-192.223883,0.00014946,2]
[329810748,1718689746218,-250.0,0.0001515,2]
[329810749,1718689746238,-2566.74111167,0.00015996,2]
[329810750,1718689746259,-1581.77175318,0.00015997,2]
[329810751,1718689746280,-188.80588622,0.00015998,2]
[329810752,1718689746303,-15425.61997912,0.00015999,2]
[329810753,1718689746323,-1356.61976056,0.00016,2]
[329810754,1718689746345,-15379.4242163,0.00016534,2]
[329810755,1718689766112,-815.33471962,0.00018041,2]
[329810756,1718689766135,-262.76085494,0.0001814,2]
[329810757,1718689766155,-1898.42634819,0.0001814,2]
[329810758,1718689766177,-2566.74111167,0.0001814,2]
[329810759,1718689766199,-509.78387465,0.00018141,2]
[329810760,1718689766222,-311.39191149,0.00018142,2]
[329810761,1718689769109,-176.49693239,0.0001814,2]
[329810762,1718689769130,-188.60808851,0.00018142,2]
[329810763,1718689769153,-773.54,0.00018142,2]
[329810764,1718689769175,-500.0,0.00018142,2]
[329810765,1718689769330,-500.0,0.00018142,2]
[329810766,1718689769355,-500.0,0.00018142,2]
[329810767,1718689769377,-500.0,0.00018142,2]
[329810768,1718689769400,-500.0,0.00018142,2]
[329810769,1718689769422,-500.0,0.00018142,2]
[329810770,1718689769444,-500.0,0.00018142,2]
[329810771,1718689769466,-500.0,0.00018142,2]
[329810772,1718689769487,-181.9140256,0.00018143,2]
[329810773,1718689769506,-1286.87527625,0.00018143,2]
[329810774,1718689769527,-155.46016051,0.00018143,2]
[329810775,1718689769548,-263.39394494,0.00018143,2]
[329810776,1718689769569,-2340.66666516,0.00018143,2]
[329810777,1718689769590,-946.56236145,0.00018143,2]
[329810778,1718689769610,-275.82048278,0.00018143,2]
[329810779,1718689769631,-383.12732624,0.00018143,2]
[329810780,1718689769651,-1398.05703776,0.00018144,2]
[329810781,1718689769673,-168.69397823,0.00018337,2]
[329810782,1718689769697,-500.0,0.00018416,2]
[329810783,1718689769720,-773.54,0.00018416,2]
[329810784,1718689769740,-500.0,0.00018416,2]
[329810785,1718689769762,-500.0,0.00018416,2]
[329810786,1718689769785,-500.0,0.00018416,2]
[329810787,1718689769806,-500.0,0.00018416,2]
[329810788,1718689769827,-500.0,0.00018416,2]
[329810789,1718689769848,-500.0,0.00018437,2]
[329810790,1718689769872,-500.0,0.00018437,2]
[329810791,1718689769894,-500.0,0.00018437,2]
[329810792,1718689769915,-500.0,0.00018437,2]
[329810793,1718689769935,-500.0,0.00018437,2]
[329810794,1718689769957,-512.9964506,0.00018437,2]
[329810795,1718689769980,-500.0,0.00018437,2]
[329810796,1718689770000,-413.12284539,0.00018437,2]
[329810797,1718689770022,-500.0,0.00018437,2]
[329810798,1718689779187,596.3,0.00018437,2]
[329810799,1718689785277,543.59995711,0.00018437,2]
[329810800,1718689789130,512.38378805,0.00018142,2]
[329810801,1718689792514,500.0,0.00018437,2]
[329810802,1718689806953,500.0,0.00018437,2]
[329810803,1718689824830,500.0,0.00018142,2]
[329810804,1718689825310,500.0,0.00018416,2]
[329810855,1718689832448,-516.20767634,0.0001855,2]
[329810857,1718689832461,-2028.89952765,0.0001855,2]
[329810859,1718689832472,-21.63390768,0.0001855,2]
[329810860,1718689832482,-1582.16020003,0.00018551,2]
[329810861,1718689832492,-861.28052001,0.00018552,2]
[329810862,1718689832501,-773.54,0.0001869,2]
[329810863,1718689832510,-500.0,0.0001869,2]
[329810864,1718689832520,-190.77816247,0.0001869,2]
[329810865,1718689832532,-122.16183753,0.0001869,2]
[329810866,1718689832542,-500.0,0.0001869,2]
[329810867,1718689832551,-500.0,0.00018711,2]
[329810868,1718689832560,-500.0,0.00018711,2]
[329810869,1718689832570,-500.0,0.00018711,2]
[329810870,1718689832579,-500.0,0.00018711,2]
[329810871,1718689832592,-500.0,0.00018711,2]
[329810872,1718689832602,-500.0,0.00018711,2]
[329810873,1718689832613,-383.75303149,0.00018777,2]
[329810874,1718689832622,-500.0,0.00018777,2]
[329810875,1718689832631,-184.31,0.00018777,2]
[329810876,1718689832641,-500.0,0.00018777,2]
[329810877,1718689832650,-504.5217353,0.00018777,2]
[329810878,1718689832659,-506.5827006,0.00018777,2]
[329810879,1718689832669,-500.0,0.00018777,2]
[329810880,1718689832679,-500.0,0.00018777,2]
[329810882,1718689832687,-504.09949621,0.00018777,2]
[329810884,1718689832698,-504.1671855,0.00018777,2]
[329810886,1718689832716,-611.01776434,0.00018777,2]
[329810888,1718689832725,-510.26797335,0.00018777,2]
[329810890,1718689832735,-519.70783911,0.00018777,2]
[329810891,1718689832744,-374.66688644,0.00018777,2]
[329810893,1718689832754,-540.63691624,0.00018777,2]
[329810894,1718689832763,-500.0,0.00018777,2]
[329810895,1718689832773,-500.0,0.00018777,2]
[329810897,1718689832787,-182.252972,0.00018777,2]
[329810899,1718689832796,-503.66825332,0.00018777,2]
[329810901,1718689832806,-586.15834019,0.00018777,2]
[329810903,1718689832815,-512.66993647,0.00018777,2]
[329810905,1718689832824,-500.58172415,0.00018796,2]
[329810906,1718689832835,-509.8163225,0.00018796,2]
[329810907,1718689832844,-508.91261558,0.00018796,2]
[329810908,1718689832854,-763.83,0.00018796,2]
[329810909,1718689832866,-372.87152471,0.00018796,2]
[329810910,1718689832876,-329.67645292,0.000189,2]
[329810911,1718689832885,-773.54,0.00018964,2]
[329810912,1718689832894,-500.0,0.00018964,2]
[329810913,1718689832903,-500.0,0.00018964,2]
[329810914,1718689832912,-519.82,0.00018985,2]
[329810915,1718689832921,-500.0,0.00018985,2]
[329810916,1718689832930,-526.42423468,0.00018985,2]
[329810917,1718689832939,-500.0,0.00018985,2]
[329810918,1718689832949,-319.22,0.00018985,2]
[329810919,1718689832959,-500.0,0.00018985,2]
[329810920,1718689832968,-500.0,0.00019051,2]
[329810921,1718689832977,-500.0,0.00019051,2]
[329810922,1718689832987,-562.62,0.00019051,2]
[329810923,1718689832996,-763.83,0.0001907,2]
[329810924,1718689833006,-153.0,0.0001922,2]
[329810925,1718689833015,-153.0,0.00019221,2]
[329810926,1718689833025,-153.0,0.00019221,2]
[329810927,1718689833034,-773.54,0.00019238,2]
[329810928,1718689833043,-500.0,0.00019238,2]
[329810929,1718689833053,-500.0,0.00019238,2]
[329810930,1718689833062,-500.0,0.00019259,2]
[329810931,1718689833072,-500.0,0.00019259,2]
[329810932,1718689833081,-500.0,0.00019259,2]
[329810933,1718689833091,-500.0,0.00019325,2]
[329810934,1718689833100,-763.83,0.00019344,2]
[329810935,1718689833112,-390.58051,0.00019361,2]
[329810936,1718689833121,-773.54,0.00019512,2]
[329810937,1718689833130,-500.0,0.00019512,2]
[329810938,1718689833139,-500.0,0.00019512,2]
[329810939,1718689833148,-168.6939782,0.00019525,2]
[329810940,1718689833158,-500.0,0.00019533,2]
[329810941,1718689833168,-500.0,0.00019533,2]
[329810942,1718689833177,-365.39211681,0.00019533,2]
[329810943,1718689833191,-134.60788319,0.00019533,2]
[329810944,1718689833200,-175.39211681,0.00019579,2]
[329810945,1718689833212,-824.60788319,0.00019579,2]
[329810946,1718689833222,-1000.0,0.00019588,2]
[329810947,1718689833231,-224.2050545,0.00019599,2]
[329810948,1718689833245,-275.7949455,0.00019599,2]
[329810949,1718689833254,-954.94446397,0.00019614,2]
[329810950,1718689833265,-45.05553603,0.00019614,2]
[329810951,1718689833275,-458.58344491,0.00019618,2]
[329810966,1718689840068,-649.24,0.00019598,2]
[329810967,1718689840077,-261.94705323,0.00019619,2]
[329810968,1718689840087,-1000.0,0.0001963,2]
[329810969,1718689840097,-212.92079246,0.00019645,2]
[329810971,1718689840109,-787.07920754,0.00019645,2]
[329810972,1718689840121,-1000.0,0.0001965,2]
[329810973,1718689840130,-483.74540065,0.00019677,2]
[329810974,1718689840142,-16.25459935,0.00019677,2]
[329810975,1718689840151,-1000.0,0.00019678,2]
[329810976,1718689840161,-1000.0,0.00019683,2]
[329810977,1718689840170,-1000.0,0.00019702,2]
[329810978,1718689840179,-153.0,0.00019757,2]
[329810979,1718689840189,-1000.0,0.00019762,2]
[329810980,1718689840198,-1000.0,0.00019776,2]
[329810981,1718689840207,-500.0,0.00019786,2]
[329810982,1718689840216,-500.0,0.00019786,2]
[329810983,1718689840225,-1000.0,0.00019802,2]
[329810984,1718689840235,-500.0,0.00019807,2]
[329810985,1718689840244,-500.0,0.00019807,2]
[329810986,1718689840254,-500.0,0.00019807,2]
[329810987,1718689840263,-1000.0,0.00019808,2]
[329810989,1718689840273,-1000.0,0.0001981,2]
[329810990,1718689840282,-1000.0,0.00019813,2]
[329810991,1718689840292,-649.24,0.00019872,2]
[329810992,1718689840302,-500.0,0.00019873,2]
[329810993,1718689840312,-306.0,0.00019904,2]
[329810994,1718689840321,-155.0,0.0001992,4]
[329810995,1718689840331,-153.0,0.0002,2]
[329810996,1718689840340,-121.78411206,0.00020017,2]
[329811012,1718689841312,-1570.92564338,0.00020017,2]
[329811013,1718689841342,-1172.05738362,0.00020017,2]
[329811014,1718689841353,-2407.19956917,0.00020017,2]
[329811015,1718689841363,-500.0,0.0002006,2]
[329811016,1718689841372,-500.0,0.0002006,2]
[329811017,1718689841381,-500.0,0.00020081,2]
[329811018,1718689841389,-500.0,0.00020081,2]
[329811019,1718689841399,-500.0,0.00020081,2]
[329811020,1718689841408,-158.39493469,0.00020096,3]
[329811021,1718689841417,-649.24,0.00020146,2]
[329811022,1718689841426,-168.09053414,0.00020147,2]
[329811103,1718689846323,500.0,0.00018142,2]
[329811105,1718689846392,-363.49946586,0.00020147,2]
[329811106,1718689846402,-312.90349386,0.00020239,2]
[329811108,1718689846411,-500.0,0.00020299,2]
[329811110,1718689846420,-51808.21784127,0.000203,2]
[329811112,1718689846430,-160.0,0.000203,2]
[329811114,1718689846439,-160.0,0.000203,2]
[329811116,1718689846448,-225.25685943,0.000203,2]
[329811118,1718689846457,-5459.44368757,0.000203,2]
[329811119,1718689846466,-5076.95411406,0.000203,2]
[329811121,1718689846475,-172.629659,0.000203,2]
[329811123,1718689846485,-1000.0,0.000203,2]
[329811125,1718689846494,-500.0,0.00020334,2]
[329811127,1718689846503,-500.0,0.00020334,2]
[329811129,1718689846512,-500.0,0.00020355,2]
[329811131,1718689846521,-500.0,0.00020355,2]
[329811133,1718689846531,-895.7398787,0.00020365,2]
[329811135,1718689846540,-17162.54291905,0.00020367,2]
[329811142,1718689846590,500.0,0.00018416,2]
[329811151,1718689925310,3550.5,0.00018487,2]
[329811152,1718689925333,1712.81248857,0.00018487,2]
[329811153,1718689935864,500.0,0.00018142,2]
[329811154,1718689936123,500.0,0.00018416,2]
[329811155,1718689940950,8.11298257,0.00018141,2]
[329811159,1718690003896,154.82968734,9.999e-05,2]
[329811161,1718690388921,1582.54864688,0.0001,2]
[329811162,1718690517463,154.82968734,9.999e-05,2]
[329811164,1718690840131,-269.05544481,0.00014605,2]
[329811165,1718690849169,-1778.45592737,0.00014605,2]
[329811167,1718690947163,-2566.74173733,0.0001444,2]
[329811168,1718690947184,-2787.7444428,0.00014441,2]
[329811169,1718690947204,-269.0554448,0.00014607,2]
[329811170,1718690947225,-300.0,0.0001513,2]
[329811171,1718690947245,-8848.8723895,0.00015131,2]
[329811172,1718690947265,-1762.4895243,0.00015441,2]
[329811173,1718690947285,-161.86427666,0.00016166,2]
[329811174,1718690947305,-24880.0,0.00016168,2]
[329811175,1718690947325,-978.81359911,0.00016372,2]
[329811176,1718690947345,-500.0,0.00016533,2]
[329811177,1718690947365,-500.0,0.00016533,2]
[329811178,1718690947386,-287.28,0.00016533,2]
[329811179,1718690947406,-500.0,0.00016533,2]
[329811180,1718690947427,-512.08774668,0.00016533,2]
[329811181,1718690947448,-226.187725,0.00016556,2]
[329811182,1718690947469,-500.0,0.00016807,2]
[329811183,1718690947495,-500.0,0.00016807,2]
[329811184,1718690947515,-500.0,0.00016807,2]
[329811185,1718690947536,-500.0,0.00017081,2]
[329811186,1718690947558,-578.36,0.00017081,2]
[329811187,1718690947580,-299.74414015,0.00017081,2]
[329811188,1718690948280,-500.0,0.00017421,2]
[329811189,1718690948304,-869.04,0.00017421,2]
[329811190,1718690948327,-500.0,0.00017421,2]
[329811191,1718690948349,-500.0,0.00017421,2]
[329811192,1718690948373,-500.0,0.00017421,2]
[329811193,1718690948396,-500.0,0.00017421,2]
[329811194,1718690948419,-500.0,0.00017421,2]
[329811195,1718690948441,-500.0,0.00017421,2]
[329811196,1718690948465,-500.0,0.00017421,2]
[329811197,1718690948493,-500.0,0.00017421,2]
[329811198,1718690948515,-500.0,0.00017421,2]
[329811199,1718690948538,-1581.77175318,0.00017422,2]
[329811200,1718690948561,-7346.55221367,0.00017423,2]
[329811201,1718690948584,-432.95857982,0.00017595,2]
[329811202,1718690948607,-500.0,0.00017695,2]
[329811203,1718690948632,-869.04,0.00017695,2]
[329811204,1718690948653,-500.0,0.00017695,2]
[329811205,1718690948676,-500.0,0.00017695,2]
[329811206,1718690948697,-201.02191296,0.00017695,2]
[329811207,1718690948719,-500.0,0.00017969,2]
[329811208,1718690948746,-869.04,0.00017969,2]
[329811209,1718690948768,-491.88701743,0.00017969,2]
[329811210,1718690948794,-500.0,0.00017969,2]
[329811211,1718690950227,-500.0,0.00018142,2]
[329811212,1718690950250,-500.0,0.00018142,2]
[329811213,1718690950272,-500.0,0.00018142,2]
[329811214,1718690950293,-505.6549058,0.00018142,2]
[329811215,1718690950316,-869.04,0.00018243,2]
[329811216,1718690950339,-558.12,0.00018243,2]
[329811217,1718690951303,507.46129436,0.0001742,2]
[329811218,1718690964126,-500.0,0.00018415,2]
[329811219,1718690964150,-500.0,0.00018415,2]
[329811220,1718690964172,-503.63825843,0.00018415,2]
[329811221,1718690964195,-426.62860003,0.00018415,2]
[329811222,1718690964219,-500.0,0.00018415,2]
[329811223,1718690964243,-500.0,0.00018415,2]
[329811224,1718690964266,-500.0,0.00018415,2]
[329811225,1718690964289,-500.0,0.00018415,2]
[329811226,1718690964312,-500.0,0.00018415,2]
[329811227,1718690964334,-500.98711381,0.00018415,2]
[329811228,1718690964356,-523.86326512,0.00018415,2]
[329811229,1718690964378,-500.0,0.00018415,2]
[329811230,1718690964402,-500.0,0.00018415,2]
[329811231,1718690964426,-500.0,0.00018415,2]
[329811232,1718690964446,-500.0,0.00018415,2]
[329811233,1718690964467,-223.04920912,0.00018415,2]
[329811234,1718690964489,-500.0,0.00018415,2]
[329811235,1718690964510,-1222.19922045,0.00018416,2]
[329811236,1718690964531,-500.0,0.00018416,2]
[329811237,1718690964551,-500.0,0.00018416,2]
[329811238,1718690964575,-869.04,0.00018517,2]
[329811239,1718690964832,500.0,0.00018415,2]
[329811240,1718690968527,500.0,0.00017421,2]
[329811241,1718690968790,500.0,0.00017695,2]
[329811242,1718690969906,500.0,0.00017969,2]
[329811243,1718690980054,500.0,0.00018415,2]
[329811244,1718690990063,-443.37560348,0.00018647,2]
[329811245,1718690990116,-201.23933724,0.00018647,2]
[329811246,1718690994053,502.98098192,0.00018415,2]
[329811247,1718690994725,226.1877252,0.00018025,2]
[329811248,1718691018527,439.99873683,0.00018025,2]
[329811249,1718691028774,500.0,0.00018415,2]
[329811250,1718691029096,500.0,0.00017421,2]
[329811251,1718691029410,500.0,0.00017695,2]
[329811252,1718691029687,500.0,0.00017969,2]
[329811253,1718691029955,500.0,0.00018243,2]
[329811254,1718691030241,216.10440126,0.00018517,2]
[329811510,1718691038179,500.0,0.00017421,2]
[329811512,1718691038452,500.0,0.00017695,2]
[329811544,1718691038751,-283.89559874,0.00018517,2]
[329811546,1718691038761,-1922.12679661,0.00018647,2]
[329811548,1718691038771,-500.0,0.00018648,2]
[329811550,1718691038780,-428.43949863,0.00018648,2]
[329811552,1718691038790,-500.0,0.00018648,2]
[329811554,1718691038800,-432.95857979,0.00018671,2]
[329811556,1718691038811,-500.0,0.00018689,2]
[329811558,1718691038820,-500.0,0.00018689,2]
[329811560,1718691038830,-500.0,0.00018689,2]
[329811562,1718691038840,-500.0,0.00018689,2]
[329811564,1718691038850,-500.0,0.00018689,2]
[329811566,1718691038859,-500.0,0.00018689,2]
[329811568,1718691038869,-500.0,0.00018689,2]
[329811570,1718691038878,-500.0,0.00018689,2]
[329811572,1718691038887,-500.0,0.0001869,2]
[329811574,1718691038897,-869.04,0.00018791,2]
[329811576,1718691038906,-500.0,0.00018791,2]
[329811578,1718691038915,-219.78430195,0.000189,2]
[329811580,1718691038925,-422.015422,0.00018922,2]
[329811582,1718691038934,-500.0,0.00018922,2]
[329811584,1718691038943,-500.0,0.00018963,2]
[329811586,1718691038952,-500.0,0.00018963,2]
[329811588,1718691038962,-500.0,0.00018963,2]
[329811590,1718691038971,-500.0,0.00018963,2]
[329811592,1718691038980,-500.0,0.00018963,2]
[329811594,1718691038989,-500.0,0.00018963,2]
[329811596,1718691038998,-500.0,0.00018963,2]
[329811598,1718691039007,-500.0,0.00018963,2]
[329811600,1718691039017,-500.0,0.00018964,2]
[329811602,1718691039027,-500.0,0.00018983,2]
[329811604,1718691039037,-869.04,0.00019065,2]
[329811606,1718691039046,-500.0,0.00019065,2]
[329811608,1718691039057,-160.395582,0.00019178,2]
[329811610,1718691039067,-500.0,0.00019196,2]
[329811612,1718691039077,-500.0,0.00019237,2]
[329811614,1718691039087,-500.0,0.00019237,2]
[329811616,1718691039098,-500.0,0.00019237,2]
[329811618,1718691039108,-500.0,0.00019237,2]
[329811620,1718691039122,-642.9,0.00019237,2]
[329811622,1718691039133,-500.0,0.00019237,2]
[329811624,1718691039142,-500.0,0.00019237,2]
[329811626,1718691039154,-500.0,0.00019237,2]
[329811628,1718691039165,-166.08175569,0.00019238,2]
[329811630,1718691039175,-1303.97341688,0.0001932,2]
[329811632,1718691039184,-203.0,0.00019325,2]
[329811634,1718691039195,-203.0,0.00019325,2]
[329811636,1718691039204,-203.0,0.00019325,2]
[329811638,1718691039215,-203.0,0.00019325,2]
[329811640,1718691039224,-203.0,0.00019325,2]
[329811642,1718691039234,-203.0,0.00019325,2]
[329811644,1718691039245,-203.0,0.00019325,2]
[329811646,1718691039255,-203.0,0.00019325,2]
[329811648,1718691039264,-203.0,0.00019325,2]
[329811650,1718691039274,-203.0,0.00019325,2]
[329811652,1718691039284,-203.0,0.00019325,2]
[329811654,1718691039293,-203.0,0.00019325,2]
[329811656,1718691039303,-203.0,0.00019325,2]
[329811658,1718691039313,-203.0,0.00019325,2]
[329811660,1718691039324,-203.0,0.00019325,2]
[329811671,1718691039334,-203.0,0.00019325,2]
[329811675,1718691039461,-203.0,0.00019325,2]
[329811676,1718691039472,-203.0,0.00019325,2]
[329811677,1718691039482,-203.0,0.00019325,2]
[329811678,1718691039493,-203.0,0.00019325,2]
[329811679,1718691039503,-203.0,0.00019325,2]
[329811680,1718691039514,-203.0,0.00019325,2]
[329811681,1718691039523,-203.0,0.00019325,2]
[329811682,1718691039533,-203.0,0.00019325,2]
[329811683,1718691039543,-203.0,0.00019325,2]
[329811684,1718691039552,-203.0,0.00019325,2]
[329811685,1718691039562,-203.0,0.00019325,2]
[329811686,1718691039572,-203.0,0.00019325,2]
[329811687,1718691039581,-203.0,0.00019325,2]
[329811688,1718691039591,-203.0,0.00019325,2]
[329811689,1718691039600,-203.0,0.00019325,2]
[329811690,1718691039610,-203.0,0.00019325,2]
[329811691,1718691039619,-203.0,0.00019325,2]
[329811692,1718691039628,-203.0,0.00019325,2]
[329811693,1718691039638,-203.0,0.00019326,2]
[329811694,1718691039648,-203.0,0.00019326,2]
[329811695,1718691039658,-203.0,0.00019326,2]
[329811696,1718691039668,-203.0,0.00019326,2]
[329811697,1718691039677,-203.0,0.00019326,2]
[329811698,1718691039687,-203.0,0.00019326,2]
[329811699,1718691039696,-203.0,0.00019326,2]
[329811701,1718691039706,-203.0,0.00019326,2]
[329811703,1718691039716,-203.0,0.00019326,2]
[329811705,1718691039726,-203.0,0.00019326,2]
[329811707,1718691039736,-203.0,0.00019326,2]
[329811709,1718691039747,-203.0,0.00019326,2]
[329811711,1718691039756,-203.0,0.00019326,2]
[329811713,1718691039766,-203.0,0.00019326,2]
[329811715,1718691039776,-203.0,0.00019326,2]
[329811717,1718691039785,-203.0,0.00019326,2]
[329811719,1718691039795,-203.0,0.00019326,2]
[329811721,1718691039804,-203.0,0.00019326,2]
[329811723,1718691039815,-203.0,0.00019326,2]
[329811725,1718691039825,-203.0,0.00019326,2]
[329811727,1718691039835,-203.0,0.00019326,2]
[329811729,1718691039846,-203.0,0.00019326,2]
[329811731,1718691039855,-203.0,0.00019326,2]
[329811733,1718691039865,-203.0,0.00019326,2]
[329811735,1718691039875,-203.0,0.00019326,2]
[329811737,1718691039885,-203.0,0.00019326,2]
[329811739,1718691039895,-203.0,0.00019326,2]
[329811741,1718691039904,-203.0,0.00019326,2]
[329811743,1718691039913,-203.0,0.00019326,2]
[329811745,1718691039922,-203.0,0.00019326,2]
[329811747,1718691039932,-203.0,0.00019326,2]
[329811749,1718691039941,-203.0,0.00019326,2]
[329811751,1718691039950,-203.0,0.00019326,2]
[329811753,1718691039960,-203.0,0.00019326,2]
[329811755,1718691039969,-203.0,0.00019326,2]
[329811757,1718691039978,-203.0,0.00019326,2]
[329811758,1718691039987,-203.0,0.00019326,2]
[329811761,1718691039997,-203.0,0.00019326,2]
[329811763,1718691040006,-203.0,0.00019326,2]
[329811765,1718691040016,-203.0,0.00019326,2]
[329811766,1718691040026,-203.0,0.00019326,2]
[329811769,1718691040035,-203.0,0.00019326,2]
[329811771,1718691040045,-203.0,0.00019326,2]
[329811773,1718691040055,-203.0,0.00019326,2]
[329811775,1718691040066,-203.0,0.00019326,2]
[329811777,1718691040076,-203.0,0.00019326,2]
[329811778,1718691040086,-203.0,0.00019326,2]
[329811780,1718691040095,-203.0,0.00019326,2]
[329811782,1718691040105,-203.0,0.00019326,2]
[329811785,1718691040116,-203.0,0.00019326,2]
[329811787,1718691040129,-203.0,0.00019326,2]
[329811788,1718691040138,-203.0,0.00019326,2]
[329811791,1718691040148,-869.04,0.00019339,2]
[329811792,1718691040158,-500.0,0.00019339,2]
[329811795,1718691040172,-318.0866657,0.00019355,2]
[329811797,1718691040182,-500.0,0.0001947,2]
[329811799,1718691040193,-500.0,0.00019511,2]
[329811801,1718691040203,-500.0,0.00019511,2]
[329811803,1718691040213,-500.0,0.00019511,2]
[329811805,1718691040222,-500.0,0.00019511,2]
[329811807,1718691040232,-500.0,0.00019511,2]
[329811809,1718691040241,-500.0,0.00019511,2]
[329811811,1718691040251,-500.0,0.00019511,2]
[329811812,1718691040260,-321.80316044,0.00019587,2]
[329811815,1718691040269,-869.04,0.00019613,2]
[329811817,1718691040279,-500.0,0.00019613,2]
[329811818,1718691040290,-1000.0,0.00019649,2]
[329811821,1718691040301,-945.27520757,0.00019688,2]
[329811823,1718691040310,-1000.0,0.00019724,2]
[329811825,1718691040321,-432.95857979,0.00019748,2]
[329811827,1718691040332,-1000.0,0.00019784,2]
[329811829,1718691040342,-500.0,0.00019785,2]
[329811831,1718691040352,-401.42,0.00019785,2]
[329811833,1718691040362,-500.0,0.00019785,2]
[329811835,1718691040372,-500.0,0.00019785,2]
[329811837,1718691040381,-500.0,0.00019785,2]